Cogmind - Beta 16 @@@ ROGUE MODE // 2025.12.30 @ 09:50:34 Player: Random Result: Destroyed by G-47 Trooper with Particle Gun Performance ------------- Evolutions (0) 0 Regions Visited (1) 200 Robots Destroyed (14) 70 Value Destroyed (338) 338 Prototype IDs (0) 0 Alien Tech Used (0) 0 Bonus (0) 0 TOTAL SCORE: 608 Bonus ------- None Cogmind --------- Core Integrity 0/250 Matter 300/300 Energy 100/100 System Corruption 3% Temperature Cool (9) Movement Treading (160) Location -10/Materials Parts ------- > --- POWER (1) -------- (None) > --- PROPULSION (2) --- Light Treads > --- UTILITY (2) ------ Small Storage Unit Small Storage Unit > --- WEAPON (2) ------- Assault Rifle Light Assault Rifle > --- INVENTORY (8) ---- Heat Sink Heat Sink Medium Storage Unit Tractor Beam Peak State ------------ > --- POWER ------------ Light Ion Engine > --- PROPULSION ------- Aluminum Leg Aluminum Leg > --- UTILITY ---------- Small Storage Unit Small Storage Unit > --- WEAPON ----------- Small Laser Light Assault Rifle > --- INVENTORY -------- Light Ion Engine Light Treads Light Treads Wheel Wheel Medium Laser [Rating: 7] Favorites ----------- Power Light Ion Engine Engine Light Ion Engine Propulsion Aluminum Leg Treads Light Treads Leg Aluminum Leg Utility Small Storage Unit Storage Small Storage Unit Weapon Small Laser Energy Gun Small Laser Ballistic Gun Light Assault Rifle Build | -11 -10 ------- Run | Yrd Mat Slots Evolved . | . . Power . | . . Propulsion . | . . Utility . | . . Weapon . | . . Parts Attached 15 | 7 8 Power 2 | 1 1 Engine 2 | 1 1 Core . | . . Reactor . | . . Propulsion 5 | 2 3 Treads 1 | . 1 Leg 4 | 2 2 Wheel . | . . Hover . | . . Flight . | . . Utility 2 | 2 . Device . | . . Storage 2 | 2 . Processor . | . . Hackware . | . . Protection . | . . Artifact . | . . Weapon 6 | 2 4 Energy Gun 4 | 1 3 Energy Cannon . | . . Ballistic Gun 2 | 1 1 Ballistic Cannon . | . . Launcher . | . . Special Weapon . | . . Impact Weapon . | . . Slashing Weapon . | . . Piercing Weapon . | . . Special Melee Weapon . | . . Unidentified Prototypes . | . . Parts Lost 4 | . 4 Power 2 | . 2 Propulsion 2 | . 2 Utility . | . . Weapon . | . . Highest Loss Streak 4 | . 4 To Critical Strikes . | . . Average Backups 6 | 4 6 Power . | . . Propulsion 2 | 2 2 Utility 1 | . 1 Weapon 1 | . 1 Tool/Special . | . . Unused Backups 7 | . 7 Power . | . . Propulsion 5 | . 5 Utility 2 | . 2 Weapon . | . . Tool/Special . | . . Average Slot Usage (%) 92 | . 92 Engine 10 | . 10 Treads 1 | . 1 Leg 23 | . 23 Storage 28 | . 28 Energy Gun 15 | . 15 Ballistic Gun 12 | . 12 Peak Build Rating 7 | 7 7 Average Rating 6 | 5 6 On Entrance 3 | . 7 Avg Prop Armor Cover (%) . | . . Naked Turns . | . . Heaviest Build 16 | 15 16 Greatest Support 20 | 20 20 Greatest Overweight (x) 1 | . 1 Average Overweight (x) . | . . Largest Inventory Capacity 8 | 8 8 Average Capacity 7 | 7 8 Most Carried 8 | 8 8 Average Carried 6 | 4 6 Final Capacity 8 | 8 8 Final Carried 8 | 8 4 Class Distribution -------------------- 76% | Mutant 23% | Scavenger-Mutant Dominant Class ---------------- Mutant | -10/Materials Resources | -11 -10 ----------- Run | Yrd Mat Matter Collected 394 | 275 119 Remotely . | . . Salvage Created 444 | 79 365 Parts 25 | 5 20 Haulers Intercepted . | . . Recyclers Shooed . | . . Parts Field Recycled . | . . Retrieved Matter . | . . Parts Self-Destructed . | . . Prevented . | . . Parts Restored . | . . Kills | -11 -10 ------- Run | Yrd Mat Combat Hostiles Destroyed 11 | . 11 Guns 11 | . 11 Classes Destroyed 5 | 2 3 Worker 1 | 1 . Recycler 1 | 1 . Watcher 1 | . 1 Swarmer 3 | . 3 Grunt 8 | . 8 Best Kill Streak 6 | 1 6 Combat Bots Only 5 | . 5 Max Kills in Single Turn 2 | 1 2 Gunslinging 1 | . 1 Exploded . | . . Melee . | . . Uniques/NPCs Destroyed . | . . Combat | -11 -10 -------- Run | Yrd Mat Hostile Shots Fired 105 | . 105 Missed 19 | . 19 Hits 86 | . 86 Projectile 86 | . 86 Damage Taken 1018 | . 1018 Core 250 | . 250 Absorbed by Shields . | . . Core Remaining (%) 100 | 100 . Volleys Fired 50 | 5 45 Largest 2 | 2 2 Hottest 80 | 60 80 Shots Fired 95 | 10 85 Gun 95 | 10 85 Cannon . | . . Launcher . | . . Special . | . . Kinetic 41 | 5 36 Thermal 54 | 5 49 Explosive . | . . Electromagnetic . | . . Robot Hit Streak 15 | 4 15 Robot Miss Streak 2 | 1 2 Penetration Max . | . . Secondary Targets 6 | . 6 Max Gunslinging Chain 1 | . 1 Shots Hit Robots 66 | 7 59 Core Hits 26 | 4 22 Critical Kills . | . . Critical Parts Destroyed . | . . Critical Strikes 2 | . 2 Burn 2 | . 2 Melee Attacks . | . . Impact . | . . Slashing . | . . Piercing . | . . Sneak Attacks . | . . Combat Hostiles . | . . Follow-up Attacks . | . . Damage Inflicted 704 | 65 639 Guns 704 | 65 639 Cannons . | . . Explosions . | . . Melee . | . . Ramming . | . . Kinetic 251 | 31 220 Thermal 453 | 34 419 Explosive . | . . Electromagnetic . | . . Impact . | . . Slashing . | . . Piercing . | . . Highest Corruption 3 | . 3 Average Corruption 2 | . 2 Corruption Purged . | . . Corruption Blocked . | . . Effects 6 | . 6 Message Errors 3 | . 3 Energy Discharges 1 | . 1 Data Loss (minor) 1 | . 1 Weapon Failures 1 | . 1 Overload Shots . | . . Overflow Damage . | . . Projectiles . | . . Explosions . | . . Melee . | . . Knockbacks . | . . Impact . | . . Kinetic . | . . Secondary . | . . Self-Inflicted Damage . | . . Shots . | . . Rammed . | . . Targets Rammed . | . . Kicked . | . . Crushed . | . . Highest Temperature 390 | 40 390 Average Temperature 142 | 16 154 Received Heat Transfer 519 | . 519 Effects 3 | . 3 Energy Bleed 1 | . 1 Interference 2 | . 2 Siege Activations . | . . Martial Activations . | . . Shielding Activations . | . . Robots Disrupted . | . . Combat Hostiles . | . . Robots Corrupted . | . . Combat Hostiles . | . . Parts Fried . | . . Impact Corruptions . | . . Robots Melted . | . . Combat Hostiles . | . . Parts Melted 3 | . 3 Heat Transferred 1279 | 75 1204 Parts Sabotaged . | . . Parts Stolen . | . . Parts Stripped . | . . Power Chain Reactions . | . . Alert | -11 -10 ------- Run | Yrd Mat Maximum Alert Level . | . . Low Security (%) 100 | 100 100 Level 1 . | . . Level 2 . | . . Level 3 . | . . Level 4 . | . . Level 5 . | . . High Security . | . . Max Security . | . . Peak Influence 132 | 5 132 Initial . | . . Average 50 | . 66 Influence Increases 272 | 10 262 Destroy 0b10 Robot/C 220 | . 220 Destroy 0b10 Robot/NC 15 | 10 5 Destroy Leader 32 | . 32 Successful Hack 5 | . 5 Influence Decreases 180 | 10 170 Time Decay 140 | 10 130 Lost Part 40 | . 40 Squads Dispatched 1 | . 1 Investigation . | . . Extermination . | . . Reinforcement 1 | . 1 Assault . | . . Garrison . | . . Intercept . | . . Searches Triggered . | . . Construction Impeded . | . . Haulers Reinforced . | . . Active Scanning Responses . | . . Cargo Convoy Interrupts . | . . Stealth | -11 -10 --------- Run | Yrd Mat Distress Signals 3 | . 3 Communications Jammed . | . . Distress Signals . | . . Times Spotted 15 | . 15 Peak Tracking Total 6 | . 6 Tactical Retreats . | . . Traps | -11 -10 ------- Run | Yrd Mat Traps Triggered 3 | . 3 Indirectly . | . . Trap Hack Attempts . | . . Triggered . | . . Disarmed . | . . Reprogrammed . | . . Reused . | . . Traps Extracted . | . . Installed . | . . Triggered . | . . Machines | -11 -10 ---------- Run | Yrd Mat Machines Disabled . | . . Max in Single Turn . | . . Machines Repaired . | . . Machines Dismantled . | . . Machines Sabotaged . | . . Overloaded Fab Kills . | . . Hacking | -11 -10 --------- Run | Yrd Mat Machines Accessed 1 | . 1 Terminals 1 | . 1 Fabricators . | . . Repair Stations . | . . Recycling Units . | . . Scanalyzers . | . . Garrison Access . | . . Total Hacks 4 | . 4 Successful 3 | . 3 Failed 1 | . 1 Catastrophic . | . . Database Lockouts . | . . Manual . | . . Terminals 4 | . 4 Fabricators . | . . Repair Stations . | . . Recycling Units . | . . Scanalyzers . | . . Garrison Access . | . . Terminal Hacks 3 | . 3 Record 1 | . 1 Alert Level 1 | . 1 Zone Layout 1 | . 1 Fabricator Hacks . | . . Repair Station Hacks . | . . Recycling Unit Hacks . | . . Scanalyzer . | . . Garrison Access Hacks . | . . Unauthorized Hacks . | . . Terminals . | . . Fabricators . | . . Repair Stations . | . . Recycling Units . | . . Scanalyzers . | . . Garrison Access . | . . Data Cores Recovered . | . . Used . | . . Hacking Detections . | . . Full Trace Events . | . . Feedback Events . | . . Feedback Blocked . | . . Robot Schematics Acquired . | . . Robots Built . | . . Authchips . | . . Time . | . . Total Robot Build Rating . | . . Part Schematics Acquired . | . . Parts Built . | . . Authchips . | . . Time . | . . Total Part Build Rating . | . . Part Studies Acquired . | . . Parts Repaired . | . . Time . | . . Parts Recycled . | . . Recycled Matter . | . . Retrieved Matter . | . . Retrieved Components . | . . Parts Scanalyzed . | . . Part Schematics Acquired . | . . Parts Damaged . | . . Bothacking | -11 -10 ------------ Run | Yrd Mat Used RIF Installer . | . . Robots Hacked . | . . Non-combat . | . . Combat . | . . Robot Hacks Applied . | . . Relay Couplers Released . | . . Fabnet Peak Effective % . | . . Robots Rewired . | . . Allies Hacked . | . . Hacks Repelled . | . . Allies | -11 -10 -------- Run | Yrd Mat Total Allies . | . . Largest Group . | . . Highest-Rated Group . | . . Highest-Rated Ally . | . . Total Orders . | . . Ally Attacks . | . . Total Damage . | . . Kills . | . . Allies Corrupted . | . . Allies Melted . | . . Intel | -11 -10 ------- Run | Yrd Mat Active Infowar (turns) . | . . Robot Analysis Total . | . . Derelict Logs Recovered . | . . Drone Launches . | . . Drone Recoveries . | . . Exploration | -11 -10 ------------- Run | Yrd Mat Turns Passed 483 | 122 361 Spaces Moved 228 | 76 152 Core 9 | 9 . Treads 10 | . 10 Legs 209 | 67 142 Wheels . | . . Hover . | . . Flight . | . . Fastest Speed 50 | 50 120 Average Speed 123 | 111 129 Slowest Speed 190 | 120 190 Overloaded Moves . | . . Propulsion Burnouts . | . . Robots Hopped . | . . Potential Cave-ins . | . . Cave-ins Triggered . | . . Exploration Rate (%) 15 | 4 27 Regions Visited 1 Branch Regions . Pre-discovered Areas . | . . Known Exits Taken . | . . Unknown Exits Taken 1 | 1 . Scrap Searched . | . . Spaces Dug . | . . Terrain Destroyed . | . . Melee . | . . Projectile . | . . AOE . | . . Terrain Rammed . | . . Walls Destroyed . | . . Machines Disabled . | . . Actions | -11 -10 --------- Run | Yrd Mat Total 343 | 104 239 Wait 16 | 2 14 Move 227 | 75 152 Hop . | . . Pick Up 24 | 15 9 Fast Attach . | . . Attach 11 | 7 4 Detach . | . . Swap 5 | . 5 Drop 10 | . 10 Fire 50 | 5 45 Melee . | . . Ram . | . . Kick . | . . Crush . | . . Escape Stasis . | . . Rewire . | . . Trap . | . . Miscellaneous . | . . Route ------- -11/Scrapyard -10/Materials History --------- Turn | Location | Event 5 | -11/Scrapyard | Discovered new exit (range 16) 123 | -11/Scrapyard | Entered Materials 306 | -10/Materials | Build established: Mutant 340 | -10/Materials | Core integrity fell below 50% 388 | -10/Materials | Core integrity fell below 20% 424 | -10/Materials | Lost 4 parts (2p2n) 484 | -10/Materials | Destroyed by G-47 Trooper with Particle Gun Last Messages --------------- 00441_ Acquired Assault Rifle. 00442_ K-01 Serf collects debris. 00447_ Acquired Heat Sink. 00448_ K-01 Serf collects debris. 00450_ Acquired Heat Sink. 00452_ Dropped Aluminum Leg. 00456_ Acquired 20 matter. 00462_ Acquired Med. Storage Unit. 00463_ Dropped Sml. Laser. 00464_ Dropped Med. Laser. 00464_ Dropped Sml. Laser. 00465_ R-06 Scavenger collects Aluminum Leg. 00466_ Dropped Sml. Laser. 00469_ R-06 Scavenger collects Sml. Laser. 00472_ Acquired 10 matter. 00472_ R-06 Scavenger collects Sml. Laser. 00473_ R-06 Scavenger collects Med. Laser. 00474_ Acquired 4 matter. 00483_ System corrupted: Component data lost. 00483_ Acquired 4 matter. Map ----- +----------------------------------------------------+ | ?????????????????????????????????????????????????? | | ?????????????????????????????????????????????????? | | ?????????????????????????????????????????????????? | | ?????????????????????????????????????????????????? | | ?????????????????????????????????????????????????? | | ?????????????????????????????????????????????????? | | ?????????????????????????????????????????????????? | | ?????????????????????????????????????????????????? | | ?????????????????????????????????????????????????? | | ?????????????????????????????????????????????????? | | ?????????????????????????????????????????????????? | | ?????????????????????????????????????????????????? | | ?????????????????????????????????????????????????? | | ?????????????????????????????????????????????????? | | ?????????? ????????????????????????????????????? | | ?????????# ????????????????????????????????????? | | ?????????# #???????????????????????????????????? | | ?????????# #???????????????????????????????????? | | ?????????# #??????????????????????? ##?????????? | | ?????????# ##################### #?????????? | | ########## ^a #?????????? | | ########## ^ " #?????????? | | r #?????????? | | """% ########g####### #?????????? | | " """ """ #??# %%#?????????????????????? | | " """ """ #??# @ #?????????????????????? | | " """ """ #??# === #?????????????????????? | | """%%#??# == #?????????????????????? | | % ^ = #??# == #?????????????????????? | | ####### =#??# #?????????????????????? | | ####?????# """ =#??# #?????????????????????? | | ?????????# """ #??#######?????????????????????? | | ??######## """ #??????????????????????????????? | | ??# ! # """ ######?????????????????????????? | | ??# "" # ^ """ #?????????????????????????? | | ??# T" + #######???????????????????? | | ??# "" # # #???????????????????? | | ??#[ # """ # !!!#???????????????????? | | ??# # """ # !!!#???????????????????? | | ??######## """ + !! #???????????????????? | | ?????????# """ # #???????????????????? | | ?????????# """ # #???????????????????? | | ?????????# # #???????????????????? | | ?????????# #######???????????????????? | | ?????????# """ #?????????????????????????? | | ?????????# """ #?????????????????????????? | | ?????????# """ #?????????????????????????? | | ???????### """ #### #?????????????????????????? | | ???????# """ #??# #?????????????????????????? | | ???????# #??# #?????????????????????????? | +----------------------------------------------------+ Best States ------------- Heat Dissipation 25 Energy Generation 10 Energy Capacity 125 Matter Stores 300 Matter Capacity 300 Sight Range 16 Terrain Scan Density 10 Evasion (%) 55 Recoil Reduction 1 Item Schematics ----------------- None Robot Schematics ------------------ None Fabricated ------------ Nothing Repaired ---------- Nothing Studied --------- None Alien Tech Used ----------------- None Achievements -------------- None Challenges ------------ None Game ------ Seed SegregatorScatterTurbovents Manual? 0 Play Time 00:08:10 Cumulative 2.6 hours Start 2025.12.30 @ 09:43:51 End 2025.12.30 @ 09:50:34 Sessions 1 Manual Loads 0 Difficulty Rogue Special Mode None Game No. 5 Rogue 5 Adventurer 0 Explorer 0 Win Type - Total 0 Types 0/0/0/0/0/0/0/0/0/0 Lore% 1 Gallery% 6 Achievement% 4 Wizard Run 0 Options --------- Layout 2 ASCII 0 Keyboard 0 Movement Mouse Keybinds 0 Fullscreen 2 Font 32/SmallcapsGlow Map View 50x49 Zoom Use 0% Tactical HUD 1 Map Filters NONE Filters NONE Steam 1 RUN: 1f9cb847-3e35-4beb-b182-27a98d0d6abc